bitfinex/quotes_ETHUSD_20250622
["timestamp","ask_amount","ask_price","bid_price","bid_amount"]
[1750564487858,17.386,2261.1,2261.0,2.6536249]
[1750564488723,17.83669885,2261.1,2261.0,2.6536249]
[1750564489672,17.386,2261.1,2261.0,2.6536249]
[1750564490233,0.7633,2262.0,2261.1,0.7832]
[1750564490442,0.7633,2262.0,2261.9,2.65263716]
[1750564490958,10.7633,2262.0,2261.9,2.65263716]
[1750564491259,0.99437827,2262.0,2261.8,4.62171803]
[1750564491429,10.99437827,2262.0,2261.8,4.62171803]
[1750564491632,12.8325161,2262.0,2261.9,2.65263716]
[1750564491867,12.8325161,2262.0,2261.8,4.62175048]
[1750564492160,12.8325161,2262.0,2261.8,1.969]
[1750564492161,7.387,2261.9,2261.8,1.969]
[1750564492476,7.387,2261.9,2261.8,4.62175444]
[1750564495794,7.387,2261.9,2261.8,9.28175444]
[1750564495975,7.387,2261.9,2261.8,10.05545444]
[1750564496178,0.23107827,2262.0,2261.9,2.65263716]
[1750564499793,0.23107827,2262.0,2261.9,2.69684352]
[1750564499972,1.01989071,2262.5,2261.9,2.69684352]
[1750564499973,10.0,2262.3,2262.2,2.65228538]
[1750564500188,7.786,2262.7,2262.6,2.65181649]
[1750564500345,4.4,2262.7,2262.6,2.65181649]
[1750564500846,4.63101543,2262.7,2262.6,2.65181649]
[1750564501079,10.63101543,2262.7,2262.6,2.65181649]
[1750564501463,0.63101543,2262.7,2262.6,2.65181649]
[1750564501899,0.63101543,2262.7,2262.4,6.629]
[1750564502202,19.81871697,2262.7,2262.6,2.65181649]
[1750564502349,10.0,2262.6,2262.5,2.65188322]
[1750564502550,10.0,2262.4,2262.2,2.65228528]
[1750564502863,10.8261,2262.2,2261.9,4.62157818]
[1750564503544,10.8261,2262.2,2262.0,2.65249985]
[1750564503669,10.8261,2262.2,2261.9,4.62162917]
[1750564503876,10.8261,2262.2,2262.0,2.6525106]
[1750564504389,13.97288925,2262.2,2261.9,1.969]
[1750564504783,13.97288925,2262.2,2261.9,4.62161995]
[1750564504980,13.97288925,2262.2,2262.0,2.65247544]
[1750564507705,13.97288925,2262.2,2261.8,2.65270643]
[1750564507897,13.97288925,2262.2,2261.9,2.65263068]
[1750564508071,2.13588893,2262.1,2261.9,2.65263068]
[1750564508272,7.385,2262.0,2261.9,2.65263068]
[1750564513602,10.0,2261.9,2261.5,4.66]
[1750564513805,10.0,2261.7,2261.6,2.65298755]
[1750564514383,8.1838,2261.8,2261.6,2.65298755]
[1750564515091,8.1838,2261.8,2261.7,2.65287173]
[1750564515418,18.1838,2261.8,2261.7,2.65287173]
[1750564516118,10.0,2261.8,2261.7,2.65287173]
[1750564516280,10.23108399,2261.9,2261.8,2.65275444]
[1750564517108,0.23108399,2261.9,2261.8,7.35696228]
[1750564517378,13.25579249,2262.7,2261.8,7.35696228]
[1750564517379,7.385,2262.2,2262.1,2.65240263]
[1750564517584,10.0,2262.2,2262.1,2.65240263]
[1750564517810,17.385,2262.2,2262.1,2.65240263]
[1750564522712,20.37480443,2262.2,2262.1,2.65240263]
[1750564523611,20.37480443,2262.2,2261.9,7.31257963]
[1750564523816,20.37480443,2262.2,2262.0,2.65250855]
[1750564524018,20.37480443,2262.2,2262.0,2.65251989]
[1750564525320,19.54660443,2262.2,2262.0,2.65251989]
[1750564526125,10.8259,2262.0,2261.9,4.66]
[1750564526421,18.2089,2262.0,2261.9,4.66]
[1750564526623,18.2089,2262.0,2261.7,4.62081983]
[1750564526819,18.2089,2262.0,2261.8,2.65274947]
[1750564527026,18.2089,2262.0,2261.7,1.968]
[1750564527222,20.31944283,2262.0,2261.7,2.65281559]
[1750564527520,0.04418113,2261.9,2261.7,2.65281559]
[1750564527724,10.0,2261.7,2261.6,2.65292767]
[1750564528621,10.8202,2261.7,2261.3,2.65327214]
[1750564528825,10.8202,2261.7,2260.6,0.7983]
[1750564528826,2.65346687,2261.2,2260.6,0.7983]
[1750564529027,2.65346687,2261.2,2260.4,2.65433787]
[1750564529028,2.65381964,2260.9,2260.4,2.65433787]
[1750564529228,1.0424,2259.7,2258.9,0.7983]
[1750564529441,21.19979249,2259.6,2259.5,2.65545474]
[1750564529733,0.2222,2259.7,2259.5,2.65545474]
[1750564529898,10.66612533,2259.7,2259.6,2.65533722]
[1750564530243,0.2222,2259.7,2259.6,2.65533722]
[1750564530892,0.2222,2259.7,2259.5,0.7983]
[1750564531228,0.2222,2259.7,2257.0,6.64429489]
[1750564531229,23.29997362,2259.6,2258.9,0.7983]
[1750564531414,0.2222,2259.7,2259.5,2.65540815]
[1750564531602,7.404,2259.6,2259.5,2.65540815]
[1750564531803,7.404,2259.6,2259.4,2.65553423]
[1750564532322,7.404,2259.6,2259.3,2.65564093]
[1750564532527,0.7711,2259.3,2257.5,0.7594]
[1750564532728,0.7711,2259.3,2256.7,5.522]
[1750564532729,10.0,2258.7,2257.6,2.7274]
[1750564532933,10.0,2258.5,2258.0,2.65719816]
[1750564533096,10.0,2258.5,2258.2,2.65697288]
[1750564534502,10.0,2258.2,2257.8,2.65738179]
[1750564534839,10.0,2258.0,2257.9,2.65733646]
[1750564535141,7.428,2258.0,2257.9,2.65733646]
[1750564536835,7.423,2258.0,2257.9,2.65728631]
[1750564537022,0.04418113,2258.3,2258.0,2.65714867]
[1750564537209,7.421,2258.2,2258.0,2.65714867]
[1750564537543,7.421,2258.2,2258.1,2.6571011]
[1750564537910,8.021,2258.2,2257.9,2.65725668]
[1750564538216,8.021,2258.2,2257.6,2.7284]
[1750564538418,0.86188113,2258.1,2257.8,2.65737547]
[1750564538743,10.86188113,2258.1,2257.7,2.6575678]
[1750564538909,10.8177,2258.1,2257.7,2.65752936]
[1750564539106,0.55,2257.9,2257.4,2.65786349]
[1750564539421,10.0,2257.7,2257.3,2.65804279]
[1750564539620,0.04418113,2257.6,2257.3,2.65804279]
[1750564539824,10.0,2257.4,2257.3,2.65804279]
[1750564540350,10.0,2257.7,2257.6,2.65768958]
[1750564541910,10.55,2258.0,2257.5,2.65776627]
[1750564542231,9.11068296,2257.9,2257.5,2.65776627]
[1750564542436,9.06650183,2257.9,2257.5,2.65776627]
[1750564542633,0.64418113,2257.8,2257.2,2.65816055]
[1750564542838,0.8313,2259.6,2258.4,3.48314814]
[1750564543043,0.8313,2259.6,2259.2,2.65576851]
[1750564543214,0.8313,2259.6,2259.4,2.65549954]
[1750564543768,0.8313,2259.6,2259.5,2.65545474]
[1750564543769,10.8313,2259.6,2259.5,2.65545474]
[1750564543919,12.71983,2259.6,2259.5,2.65545474]
[1750564544318,12.71983,2259.6,2259.5,2.43325474]
[1750564544755,20.24183,2259.6,2259.5,2.43325474]
[1750564544931,10.24183,2259.6,2259.5,2.43325474]
[1750564545126,8.3533,2259.6,2259.5,2.43325474]
[1750564545351,0.53,2259.7,2259.6,2.65533722]
[1750564546152,0.53,2259.7,2259.6,3.48173722]
[1750564546516,0.53,2259.7,2259.6,4.03173722]
[1750564546721,0.53,2259.7,2259.6,4.948216]
[1750564546920,0.53,2259.7,2259.6,15.582216]
[1750564547121,0.2312305,2260.9,2260.8,2.12392781]
[1750564547356,0.8313,2261.0,2260.9,2.65381042]
[1750564547659,37.75217662,2261.2,2261.1,2.65351536]
[1750564547875,37.75217662,2261.2,2260.4,0.757]
[1750564547876,0.81,2260.3,2259.0,0.757]
[1750564548027,10.2861388,2260.2,2259.1,2.65592492]
[1750564548228,10.0,2260.0,2259.9,2.65498473]
[1750564548476,10.0,2260.0,2259.4,2.1]
[1750564548784,10.0,2260.0,2259.8,2.65508632]
[1750564549569,17.637,2259.9,2259.8,2.65508632]
[1750564550539,10.0,2259.9,2259.8,2.65508632]
[1750564552566,10.4,2259.9,2259.8,2.65508632]
[1750564553267,0.4,2259.9,2259.8,3.26624151]
[1750564554271,0.4,2259.9,2259.8,2.65508632]
[1750564554477,0.4,2259.9,2259.2,0.7541]
[1750564554629,30.0,2259.6,2259.1,4.7548896]
[1750564554829,10.0,2259.3,2258.9,2.65607884]
[1750564555069,10.0,2259.1,2258.9,2.65607884]
[1750564555668,10.0,2259.1,2259.0,2.65604249]
[1750564558269,0.7574,2259.3,2259.1,2.65583646]
[1750564558464,10.0,2259.2,2259.1,2.65583646]
[1750564558629,17.626,2259.2,2259.1,2.65583646]
[1750564558834,9.3886,2259.2,2258.9,2.6560611]
[1750564559957,9.3886,2259.2,2258.8,2.65622735]
[1750564560168,9.3886,2259.2,2258.9,2.6561557]
[1750564561377,9.3886,2259.2,2259.0,2.65601139]
[1750564561538,0.8289,2259.1,2258.8,2.6562594]
[1750564561973,0.8289,2259.1,2259.0,2.65604249]
[1750564562476,7.619,2259.1,2259.0,2.65596109]
[1750564564884,7.619,2259.1,2258.8,2.65627766]
[1750564565072,7.619,2259.1,2259.0,2.65604249]
[1750564565272,7.619,2259.1,2258.9,2.65609765]
[1750564565453,7.619,2259.1,2258.8,4.79949844]
[1750564565652,7.619,2259.1,2259.0,2.65604249]
[1750564567277,17.602,2259.6,2259.5,2.65545474]
[1750564567575,0.23132057,2259.5,2259.4,2.65552444]
[1750564567942,10.0,2259.4,2259.1,7.31587289]
[1750564568141,0.23132057,2259.5,2259.1,4.66]
[1750564568142,10.0,2259.2,2259.1,4.66]
[1750564568359,10.0,2259.2,2259.1,7.31592391]
[1750564570995,0.23132057,2259.5,2259.4,2.65557227]
[1750564571198,7.82732057,2259.5,2259.4,2.65557227]
[1750564573000,9.69162263,2259.5,2259.3,2.65562551]
[1750564573359,9.69162263,2259.5,2259.4,2.65557227]
[1750564573557,9.69162263,2259.5,2259.3,2.65563383]
[1750564574257,9.69162263,2259.5,2259.4,2.65557227]
[1750564574661,9.69162263,2259.5,2259.3,2.65563874]
[1750564575085,19.69162263,2259.5,2259.1,4.66]
[1750564575303,12.23470662,2259.4,2259.2,2.65569817]
[1750564576603,7.582,2259.3,2259.2,2.65569817]
[1750564577510,10.0,2259.2,2259.1,7.31589785]
[1750564578324,10.0,2259.2,2259.1,4.66]
[1750564579573,0.7823,2259.2,2259.1,4.66]
[1750564579814,2.80927015,2259.2,2259.1,4.66]
[1750564580217,12.80927015,2259.2,2259.1,4.66]
[1750564580373,10.0,2259.2,2259.1,7.31592492]
[1750564580567,17.565,2259.2,2259.1,7.31592492]
[1750564580966,10.0,2259.2,2259.1,7.31592492]
[1750564581171,17.564,2259.2,2259.1,7.31592492]
[1750564583074,19.34353446,2259.2,2259.1,7.31592492]
[1750564584527,17.564,2259.2,2259.1,7.31592492]
[1750564585610,7.564,2259.2,2259.1,2.65592492]
[1750564585936,17.564,2259.2,2259.1,2.65592492]
[1750564589346,17.551,2259.2,2259.1,2.65592492]
[1750564591250,10.0,2259.1,2259.0,2.65597423]
[1750564591464,9.32923446,2259.2,2259.1,2.65592492]
[1750564591666,10.0,2259.1,2259.0,2.65597861]
[1750564592162,30.0,2259.0,2258.2,0.7883]
[1750564592368,40.0,2258.4,2257.4,0.7883]
[1750564592665,10.0,2257.9,2257.7,2.6574651]
[1750564592849,7.564,2257.8,2257.7,2.6574651]
[1750564593246,7.564,2257.8,2257.6,2.6576752]
[1750564593247,10.0,2257.7,2257.6,2.65762739]
[1750564593546,10.0,2257.7,2257.5,2.65774997]
[1750564593752,10.0,2258.2,2257.8,2.65743647]
[1750564593930,7.565,2258.5,2257.9,1.09832776]
[1750564594118,9.67069487,2258.8,2258.5,2.65656254]
[1750564594323,14.0,2258.6,2258.5,2.65656254]
[1750564594635,21.569,2258.6,2258.5,2.65656254]
[1750564594976,17.569,2258.6,2258.5,2.65656254]
[1750564596433,17.567,2258.6,2258.5,2.65656254]
[1750564598249,10.23141187,2258.6,2258.5,3.44486254]
[1750564598455,0.23141187,2258.6,2258.5,6.05119361]
[1750564598625,7.558,2259.1,2259.0,2.65604249]
[1750564598847,17.558,2259.1,2259.0,2.65604249]
[1750564599184,17.78935451,2259.1,2259.0,2.65604249]
[1750564599549,7.78935451,2259.1,2259.0,2.65604249]
[1750564600579,32.86081532,2259.1,2258.8,2.65621596]
[1750564600779,31.08187987,2259.1,2258.9,2.65616007]
[1750564601388,31.08187987,2259.1,2259.0,2.65604249]
[1750564601775,31.08187987,2259.1,2258.9,2.65611588]
[1750564602259,31.08187987,2259.1,2259.0,2.65604249]
[1750564603578,17.78935451,2259.1,2259.0,2.65604249]
[1750564603781,17.77335451,2259.1,2259.0,2.65604249]
[1750564603992,10.0,2259.0,2258.1,0.7603]
[1750564604189,17.542,2258.9,2258.8,2.65627766]
[1750564604571,10.0,2258.9,2258.8,2.65627766]
[1750564604795,17.552,2258.9,2258.8,2.65627766]
[1750564606107,17.548,2258.9,2258.8,2.65627766]
[1750564606260,10.0,2258.9,2258.8,2.65627766]
[1750564607005,10.0,2258.9,2258.8,3.41657766]
[1750564607186,10.0,2258.9,2258.8,4.02387282]
[1750564607715,0.4,2259.9,2259.8,2.65510222]
[1750564608012,0.4,2259.9,2259.8,2.69934525]
[1750564608299,0.4,2259.9,2259.8,2.65510222]
[1750564608505,0.4,2259.9,2259.8,3.46966242]
[1750564608864,0.4,2259.9,2259.8,7.31510222]
[1750564611181,0.4,2259.9,2259.8,7.35934842]
[1750564611503,0.4,2259.9,2259.8,7.31510222]
[1750564612005,0.4,2259.9,2259.8,8.73714545]
[1750564612206,0.4,2259.9,2259.8,18.69290222]
[1750564612393,0.23120828,2260.8,2260.7,3.4818452]
[1750564612708,0.23120828,2260.8,2260.7,10.82544428]
[1750564613106,0.23120828,2260.8,2260.7,8.1418452]
[1750564613820,10.40711727,2261.6,2261.5,2.65310634]
[1750564614182,10.0,2261.8,2261.7,2.65287173]
[1750564614397,0.7526,2261.9,2261.8,2.65275444]
[1750564614585,8.3186,2261.9,2261.8,2.65275444]
[1750564614783,19.29919382,2261.9,2261.8,2.65275444]
[1750564615527,8.54759382,2261.9,2261.8,2.65275444]
[1750564615899,18.54759382,2261.9,2261.8,2.65275444]
[1750564616210,10.23110182,2261.9,2261.8,2.65275444]
[1750564616422,0.23110182,2261.9,2261.8,2.65275444]
[1750564616598,7.79210182,2261.9,2261.8,2.65275444]
[1750564617618,0.23110182,2261.9,2261.8,2.65275444]
[1750564618425,0.23110182,2261.9,2261.8,3.44715444]
[1750564619019,0.23110182,2261.9,2261.8,3.49135656]
[1750564619382,7.554,2262.3,2261.8,3.49135656]
[1750564619383,7.554,2262.3,2262.2,2.65228538]
[1750564619905,7.78504518,2262.3,2262.2,2.65228538]
[1750564620089,7.78504518,2262.3,2262.1,2.65240263]
[1750564620606,7.78504518,2262.3,2262.2,2.65228538]
[1750564621012,7.78504518,2262.3,2261.5,0.7944]
[1750564621337,0.23104518,2262.3,2262.2,2.65228538]
[1750564621548,7.553,2262.9,2262.2,6.77319019]
[1750564621836,7.553,2262.9,2262.7,2.65161683]
[1750564622042,10.23100701,2262.8,2262.7,2.65161683]
[1750564622225,0.23100701,2262.8,2262.7,4.72061683]
[1750564622388,0.23100701,2262.8,2262.7,5.58591199]
[1750564622721,10.0,2262.6,2261.6,0.7944]
[1750564623039,10.0,2262.3,2261.9,2.65257557]
[1750564623323,10.0,2262.3,2261.9,2.65262107]
[1750564623324,0.7592,2262.2,2261.9,2.65262107]
[1750564623526,7.562,2262.1,2262.0,2.65251989]
[1750564624537,10.0,2262.0,2261.6,2.069]
[1750564624838,10.0,2262.0,2261.9,2.65263716]
[1750564626620,0.8002,2262.5,2261.8,0.04420969]
[1750564626934,17.56,2262.4,2262.3,2.65216814]
[1750564630656,7.56,2262.4,2262.3,2.65216814]
[1750564631060,7.56,2262.4,2262.2,2.65226486]
[1750564631061,10.64942428,2262.8,2262.7,2.65169929]
[1750564631261,10.0,2262.7,2262.6,2.65177182]
[1750564631561,18.20042428,2262.8,2262.7,2.65169929]
[1750564631761,7.78200701,2262.8,2262.7,2.65169929]
[1750564631963,17.78200701,2262.8,2262.7,2.65169929]
[1750564632170,7.78200701,2262.8,2262.7,2.65169929]
[1750564633068,7.77800701,2262.8,2262.7,2.65169929]
[1750564633763,0.23100701,2262.8,2262.7,2.69589106]
[1750564633963,0.23100701,2262.8,2262.7,2.65169929]
[1750564635468,0.23100701,2262.8,2262.7,3.3888464]
[1750564635765,0.23100701,2262.8,2262.7,4.1874348]
[1750564636075,10.23100701,2262.8,2262.7,3.3888464]
[1750564636856,10.23100701,2262.8,2262.6,2.65177723]
[1750564637046,10.23100701,2262.8,2262.7,2.65169929]
[1750564637457,19.88552428,2262.8,2262.5,2.6519337]
[1750564637658,19.88552428,2262.8,2262.6,2.65177825]
[1750564638450,19.88552428,2262.8,2262.5,2.65189468]
[1750564638656,21.61770949,2262.8,2262.6,2.65180423]
[1750564638974,10.0,2262.6,2262.5,2.65187434]
[1750564639464,17.538,2262.6,2262.5,2.65187434]
[1750564644945,17.538,2262.6,2262.5,7.31187434]
[1750564645678,30.0,2262.5,2261.9,7.31256589]
[1750564645883,23.25428757,2262.1,2262.0,2.65242266]
[1750564646176,30.77228757,2262.1,2262.0,2.65242266]
[1750564646967,10.0,2262.1,2262.0,2.65242266]
[1750564647167,17.518,2262.1,2262.0,2.65242266]
[1750564647378,17.515,2262.1,2262.0,2.65242266]
[1750564648383,10.0,2262.1,2262.0,2.65242266]
[1750564649073,10.0,2262.1,2262.0,3.95844715]
[1750564649469,10.0,2262.1,2262.0,4.0026503]
[1750564650689,10.4,2262.1,2262.0,4.0026503]
[1750564650879,10.4,2262.1,2262.0,8.6626503]
[1750564651080,10.4,2262.1,2262.0,8.61844715]
[1750564652486,0.4,2262.1,2262.0,8.61844715]
[1750564661630,0.4,2262.1,2262.0,9.16844715]
[1750564664641,0.4,2262.1,2262.0,19.16844715]
[1750564665048,0.4,2262.1,2262.0,27.02049339]
[1750564666678,0.23098364,2262.9,2262.8,3.98018211]
[1750564666962,0.7674,2263.8,2263.7,2.65052789]
[1750564667125,0.7674,2263.8,2263.7,2.69469853]
[1750564667320,10.7853,2264.0,2263.9,2.65029374]
[1750564667564,0.7853,2264.0,2263.9,2.65029374]
[1750564667948,1.01619192,2264.0,2263.9,2.65029374]
[1750564668139,0.23089192,2264.0,2263.9,2.65029374]
[1750564668541,0.23089192,2264.0,2263.9,4.0491889]
[1750564669429,0.7853,2264.7,2264.6,2.64947452]
[1750564670052,11.01608559,2264.7,2264.6,2.64947452]
[1750564670967,14.27037316,2264.7,2264.5,2.64951179]
[1750564671166,40.0,2264.6,2264.0,2.034]
[1750564671327,23.25428757,2264.3,2264.2,2.64994258]
[1750564671684,10.0,2264.2,2264.1,2.65005962]
[1750564672266,10.0,2264.2,2264.0,2.034]
[1750564672476,10.0,2264.2,2264.1,2.65005962]
[1750564672832,11.28346205,2264.2,2264.1,2.65005962]
[1750564673358,11.28346205,2264.2,2264.0,4.68414755]
[1750564673544,0.8,2264.1,2264.0,4.68414755]
[1750564673752,0.8,2264.1,2263.7,2.033]
[1750564673953,13.25428757,2264.0,2263.9,2.65029374]
[1750564674145,14.25993375,2264.0,2263.7,2.65046836]
[1750564674344,14.25993375,2264.0,2263.5,2.033]
[1750564674345,7.491,2263.9,2263.6,2.65064499]
[1750564674664,7.491,2263.9,2263.7,2.65042594]
[1750564674872,0.8,2263.8,2263.7,2.65052789]
[1750564675027,0.8,2263.8,2263.6,2.65060297]
[1750564675549,2.52917917,2263.8,2263.5,2.033]
[1750564675759,2.52917917,2263.8,2263.6,2.65053673]
[1750564676179,2.52917917,2263.8,2263.5,4.68370741]
[1750564676470,2.52917917,2263.8,2263.6,2.65057957]
[1750564677487,7.486,2263.7,2263.5,2.033]
[1750564677636,7.486,2263.7,2263.5,4.68367278]
[1750564677837,7.486,2263.7,2263.6,2.65064499]
[1750564679959,0.8,2263.8,2263.7,2.65052789]
[1750564680484,7.476,2263.9,2263.8,2.65041081]
[1750564680674,7.478,2264.0,2263.9,2.65029374]
[1750564681172,10.7518,2264.1,2264.0,2.65017667]
[1750564681476,18.2288,2264.1,2264.0,2.65017667]
[1750564681984,13.25428757,2264.2,2263.9,2.65029374]
[1750564681985,7.476,2264.3,2264.2,2.64994258]
[1750564682479,10.0,2264.4,2264.3,2.64982555]
[1750564683684,0.7708,2264.3,2263.9,2.6502332]
[1750564683873,13.25428757,2264.0,2263.9,2.65029374]
[1750564684398,10.0,2263.9,2263.8,2.033]
[1750564684603,20.57822876,2263.9,2263.7,2.65046585]
[1750564684900,20.57822876,2263.9,2263.6,2.65063002]
[1750564685396,13.25428757,2263.7,2263.6,2.65058575]
[1750564686281,0.23088024,2263.8,2263.7,2.65052789]
[1750564686487,7.70888024,2263.8,2263.7,2.65052789]
[1750564688801,7.70388024,2263.8,2263.7,2.65052789]
[1750564690118,0.23088024,2263.8,2263.7,2.65052789]
[1750564691421,0.23088024,2263.8,2263.7,3.73219661]
[1750564692119,20.73328757,2264.3,2264.2,2.64994258]
[1750564692508,20.96511962,2264.3,2264.2,2.64994258]
[1750564692720,30.96511962,2264.3,2264.2,2.64994258]
[1750564692908,23.48511962,2264.3,2264.2,2.64994258]
[1750564693099,30.96311962,2264.3,2264.2,2.64994258]
[1750564693298,23.48511962,2264.3,2264.2,2.64994258]
[1750564699006,17.70083205,2264.3,2264.2,2.64994258]
[1750564701302,17.69183205,2264.3,2264.2,2.64994258]
[1750564701502,0.23083205,2264.3,2264.2,3.46808881]
[1750564702130,13.25428757,2264.7,2264.6,2.64947452]
[1750564702497,13.4850678,2264.7,2264.6,2.64947452]
[1750564702727,23.4850678,2264.7,2264.6,2.64947452]
[1750564703132,0.23078023,2264.7,2264.6,4.66347452]
[1750564703447,0.23078023,2264.7,2264.6,5.39477884]
[1750564705532,0.23078023,2264.7,2264.6,5.43893179]
[1750564706458,0.23078023,2264.7,2264.6,6.19243179]
[1750564707257,0.8071,2265.4,2265.3,2.6486558]
[1750564707435,10.8071,2265.4,2265.3,2.6486558]
[1750564707629,20.70528757,2265.5,2265.4,2.64853888]
[1750564707857,30.70528757,2265.5,2265.4,2.64853888]
[1750564708070,30.93599627,2265.5,2265.4,2.64853888]
[1750564708676,30.93499627,2265.5,2265.4,2.64853888]
[1750564709952,10.0,2265.4,2265.3,2.6486558]
[1750564710670,17.442,2265.4,2265.3,2.6486558]
[1750564710843,17.442,2265.4,2265.3,3.37510977]
[1750564711989,17.442,2265.4,2265.1,4.66]
[1750564712138,0.8071,2265.3,2265.2,2.64869742]
[1750564712337,23.25428757,2265.2,2265.1,4.66]
[1750564712673,10.0,2265.1,2264.8,2.64918472]
[1750564712853,10.0,2264.8,2264.6,2.6494394]
[1750564713054,17.443,2264.7,2264.6,2.6494394]
[1750564713230,17.443,2264.7,2264.3,2.014]
[1750564713231,3.00775328,2264.8,2264.4,3.40315225]
[1750564713429,0.2307087,2265.5,2265.4,2.64853888]
[1750564714375,10.0,2265.4,2265.3,2.64862236]
[1750564718872,7.7177087,2265.5,2265.4,2.64853888]
[1750564718873,17.7177087,2265.5,2265.4,2.64853888]
[1750564720685,17.7107087,2265.5,2265.4,2.64853888]
[1750564721097,10.2307087,2265.5,2265.4,2.64853888]
[1750564721585,0.2307087,2265.5,2265.4,2.64853888]
[1750564724399,0.2307087,2265.5,2265.4,3.40453888]
[1750564725204,8.65330713,2265.6,2265.5,2.64842198]
[1750564727018,0.7805,2265.4,2264.9,0.776]
[1750564727220,0.7805,2265.4,2265.3,2.64859627]
[1750564728387,0.96669542,2265.6,2265.4,2.64853888]
[1750564728564,0.96669542,2265.6,2265.5,2.64842198]
[1750564728565,7.455,2265.6,2265.5,2.64842198]
[1750564728770,17.452,2265.7,2265.6,2.64830508]
[1750564729606,10.0,2265.6,2265.5,2.64835996]
[1750564729800,8.65330713,2265.6,2265.5,2.64835996]
[1750564733525,18.65330713,2265.6,2265.5,2.64835996]
[1750564734525,10.0,2265.6,2265.5,2.64835996]
[1750564734707,18.65330713,2265.6,2265.5,2.64835996]
[1750564736696,10.0,2265.6,2265.5,2.64835996]
[1750564736897,18.65330713,2265.6,2265.5,2.64835996]
[1750564739826,18.65330713,2265.6,2265.5,4.65135996]
[1750564740329,3.1974218,2266.4,2265.4,2.6485219]
[1750564740330,8.65330713,2265.8,2265.7,2.64818819]
[1750564740513,18.65330713,2265.8,2265.7,4.65118819]
[1750564740927,10.0,2265.8,2265.7,4.65118819]
[1750564741330,10.0,2265.8,2265.7,5.43458819]
[1750564741505,8.87831383,2266.2,2266.1,2.64772075]
[1750564741731,18.87831383,2266.2,2266.1,2.64772075]
[1750564742352,18.87831383,2266.2,2265.8,2.64801848]
[1750564742353,10.7986,2266.1,2265.8,2.64801848]
[1750564742550,10.0,2265.9,2265.8,2.64801848]
[1750564743056,0.7986,2265.8,2265.6,2.64828382]
[1750564743217,0.7986,2265.5,2265.2,2.002]
[1750564743422,8.65330713,2265.3,2265.2,4.65077273]
[1750564744247,8.65330713,2265.3,2265.2,2.64877273]
[1750564744857,30.65630454,2265.4,2265.3,2.6486558]
[1750564745155,34.80179499,2265.4,2265.3,2.6486558]
[1750564745720,10.0,2265.4,2265.3,2.6486558]
[1750564749470,10.0,2265.4,2265.3,4.6506558]
[1750564751279,10.0,2265.4,2265.3,2.6486558]
[1750564751444,10.0,2265.4,2265.3,4.6506558]
[1750564755259,14.02090454,2266.1,2265.7,2.64818819]
[1750564755457,22.87949566,2266.1,2266.0,2.64783759]
[1750564755646,15.44549566,2266.1,2266.0,2.64783759]
[1750564755976,0.2250067,2266.2,2266.1,2.64772075]
[1750564756159,7.6590067,2266.2,2266.1,2.64772075]
[1750564756555,0.2250067,2266.2,2266.1,2.64772075]
[1750564756769,0.2250067,2266.2,2266.1,2.69184667]
[1750564756971,0.2250067,2266.2,2266.1,3.49834667]
[1750564757178,0.2250067,2266.2,2266.1,5.12116054]
[1750564757749,0.2250067,2266.2,2266.1,10.33116054]
[1750564757960,0.2250067,2266.2,2266.1,10.28703462]
[1750564761378,0.2250067,2266.2,2266.1,20.28703462]
[1750564762087,0.2250067,2266.2,2266.1,29.72003462]
[1750564763054,0.2250067,2266.2,2266.1,30.99058274]
[1750564766299,0.2250067,2266.2,2266.1,30.98458274]
[1750564767883,0.37471352,2267.4,2266.7,0.55]
[1750564768076,0.37471352,2267.4,2267.3,3.44041941]
[1750564768311,0.37471352,2267.4,2267.3,12.86741941]
[1750564769163,0.37471352,2267.4,2267.3,2.64631941]
[1750564770215,10.37471352,2267.4,2267.3,2.64631941]
[1750564770895,11.15651352,2267.4,2267.3,4.64431941]
[1750564771715,12.06365004,2267.4,2266.8,10.597]
[1750564771867,24.00410454,2267.3,2267.2,2.64642334]
[1750564773192,0.7992,2267.1,2266.8,13.24381582]
[1750564773367,23.22230454,2267.0,2266.9,2.64678636]
[1750564773978,10.0,2267.0,2266.9,2.64678636]
[1750564777372,10.0,2267.0,2266.9,4.64478636]
[1750564780491,14.02150454,2267.3,2267.2,2.64643613]
[1750564782012,24.02150454,2267.3,2267.2,2.64643613]
[1750564782187,10.0,2267.2,2266.7,2.64694206]
[1750564782384,10.0,2267.2,2267.1,2.64653886]
[1750564782610,13.10240181,2267.2,2267.1,2.64653886]
[1750564783117,3.92140181,2267.2,2267.1,2.64653886]
[1750564783301,0.819,2267.2,2267.1,2.64653886]
[1750564783714,1.04952799,2267.2,2267.1,2.64653886]
[1750564785206,0.23052799,2267.2,2267.1,2.64653886]
[1750564786814,0.23052799,2267.2,2267.1,2.69064722]
[1750564787013,0.23052799,2267.2,2267.1,2.69064318]
[1750564788292,0.98802799,2267.2,2267.1,2.64653886]
[1750564788630,2.4465326,2267.2,2267.1,2.64653886]
[1750564790149,9.8725326,2267.2,2267.1,2.64653886]
[1750564790650,0.98802799,2267.2,2267.1,2.64653886]
[1750564791958,10.98802799,2267.2,2267.1,2.64653886]
[1750564792878,10.98802799,2267.2,2266.5,0.7504]
[1750564793076,10.98802799,2267.2,2267.1,2.64655286]
[1750564795860,10.23052799,2267.2,2267.1,2.64655286]
[1750564796778,0.23052799,2267.2,2267.1,2.64655286]
[1750564803766,1.02082799,2267.2,2267.0,2.6466696]
[1750564804069,0.62133827,2267.1,2267.0,2.6466696]
[1750564804275,1.02082799,2267.2,2267.1,2.64655286]
[1750564804611,8.44482799,2267.2,2267.1,2.64655286]
[1750564805911,1.02082799,2267.2,2267.1,2.64655286]
[1750564806131,0.23052799,2267.2,2267.1,2.64655286]
[1750564806619,0.23052799,2267.2,2267.1,2.69065764]
[1750564806778,0.23052799,2267.2,2267.1,3.30594036]
[1750564808216,0.23052799,2267.2,2267.1,3.26183558]
[1750564809074,0.23052799,2267.2,2267.1,4.64255286]
[1750564809675,0.23052799,2267.2,2267.1,5.40545286]
[1750564810326,0.23052799,2267.2,2267.1,5.44955485]
[1750564810471,0.23052799,2267.2,2267.1,10.10955485]
[1750564810673,0.23052799,2267.2,2267.1,10.06545286]
[1750564810903,0.23052799,2267.2,2267.1,21.33666511]